fUSD/lending_fUSD_20260508
["ID","MTS","AMOUNT","RATE_DAILY","PERIOD"]
[421843465,1778208640000,-619.81410493,0.00015814,2]
[421843468,1778208640000,-619.81410493,0.00015876,2]
[421843470,1778208640000,-619.81410493,0.00015888,2]
[421843467,1778208640000,-619.81410493,0.00015871,2]
[421843466,1778208640000,-751.94874455,0.00015861,2]
[421843471,1778208640000,-619.81410493,0.00015916,2]
[421843469,1778208640000,-619.81410493,0.00015888,2]
[421843473,1778208640000,-2000.0,0.00015916,2]
[421843472,1778208640000,-2000.0,0.00015916,2]
[421843474,1778208640000,-619.81410493,0.00015926,2]
[421843476,1778208640000,-171.22,0.0001595,2]
[421843475,1778208640000,-619.81410493,0.00015938,2]
[421843477,1778208640000,-623.36,0.00015951,2]
[421843481,1778208640000,-300.0,0.00016,2]
[421843484,1778208640000,-623.60423985,0.00016025,2]
[421843485,1778208640000,-250.0,0.00016035,2]
[421843478,1778208640000,-619.81410493,0.00015967,2]
[421843518,1778208640000,-500.0,0.00016438,2]
[421843517,1778208640000,-300.2535572,0.00016438,2]
[421843516,1778208640000,-500.82435689,0.00016438,2]
[421843550,1778208640000,-152.0,0.00017043,3]
[421843554,1778208640000,-151.0,0.00017106,2]
[421843551,1778208640000,-797.45313577,0.0001708,2]
[421843559,1778208640000,-155.41812626,0.00017114,2]
[421843552,1778208640000,-1000.0,0.000171,2]
[421843553,1778208640000,-314.0,0.000171,2]
[421843557,1778208640000,-797.45313577,0.00017106,2]
[421843556,1778208640000,-153.743081,0.00017106,2]
[421843558,1778208640000,-797.45313577,0.00017107,2]
[421843561,1778208640000,-1536.0,0.00017114,2]
[421843560,1778208640000,-1536.0,0.00017114,2]
[421843563,1778208640000,-505.93085904,0.00017114,2]
[421843555,1778208640000,-151.0,0.00017106,2]
[421843565,1778208640000,-152.0,0.00017114,2]
[421843562,1778208640000,-1536.0,0.00017114,2]
[421843567,1778208640000,-152.0,0.00017114,2]
[421843564,1778208640000,-153.73631246,0.00017114,2]
[421843568,1778208640000,-157.23469295,0.00017114,2]
[421843569,1778208640000,-154.0,0.00017114,2]
[421843571,1778208640000,-155.93137852,0.00017114,2]
[421843570,1778208640000,-154.0,0.00017114,2]
[421843572,1778208640000,-797.45313577,0.00017125,2]
[421843573,1778208640000,-797.45313577,0.00017137,2]
[421843574,1778208640000,-2000.0,0.00017138,2]
[421843576,1778208640000,-797.45313577,0.00017152,2]
[421843522,1778208640000,-2500.0,0.00016464,2]
[421843566,1778208640000,-152.0,0.00017114,2]
[421843549,1778208640000,-797.45313577,0.00017041,2]
[421843575,1778208640000,-797.45313577,0.00017152,2]
[421843546,1778208640000,-3000.0,0.00017012,2]
[421843548,1778208640000,-736.0,0.00017018,2]
[421843519,1778208640000,-823.0,0.00016449,2]
[421843521,1778208640000,-2182.06033118,0.00016464,2]
[421843523,1778208640000,-579.18380318,0.00016483,2]
[421843524,1778208640000,-579.18380318,0.00016491,2]
[421843526,1778208640000,-591.75835313,0.00016573,2]
[421843525,1778208640000,-3292.0,0.00016571,2]
[421843527,1778208640000,-297.6,0.00016574,2]
[421843528,1778208640000,-579.18380318,0.00016577,2]
[421843529,1778208640000,-579.18380318,0.00016637,2]
[421843530,1778208640000,-500.0,0.00016643,2]
[421843532,1778208640000,-504.43834535,0.00016643,2]
[421843531,1778208640000,-500.0,0.00016643,2]
[421843520,1778208640000,-152.56,0.00016457,2]
[421843534,1778208640000,-165.70740225,0.0001668,2]
[421843540,1778208640000,-502.41572104,0.00016986,2]
[421843544,1778208640000,-501.49028968,0.00016986,2]
[421843542,1778208640000,-502.27455724,0.00016986,2]
[421843547,1778208640000,-171.22,0.00017013,2]
[421843533,1778208640000,-165.5192169,0.0001668,2]
[421843543,1778208640000,-679.79308474,0.00016986,2]
[421843545,1778208640000,-502.65385745,0.00016986,2]
[421843539,1778208640000,-711.6142385,0.00016986,2]
[421843538,1778208640000,-711.982935,0.00016986,2]
[421843537,1778208640000,-155.0,0.00016938,2]
[421843536,1778208640000,-448.05,0.000168,2]
[421843535,1778208640000,-579.18380318,0.00016762,2]
[421843541,1778208640000,-1000.0,0.00016986,2]
[421843615,1778208641000,-448.05,0.000187,2]
[421843616,1778208641000,-1500.0,0.00018702,2]
[421843614,1778208641000,-152.0,0.00018696,4]
[421843612,1778208641000,-1252.0,0.00018438,2]
[421843605,1778208641000,-1152.0,0.00018049,2]
[421843611,1778208641000,-584.3,0.0001841,2]
[421843619,1778208641000,-220.45332711,0.00019,2]
[421843609,1778208641000,-297.6,0.00018231,2]
[421843610,1778208641000,-710.2,0.00018372,2]
[421843608,1778208641000,-4609.0,0.00018229,2]
[421843613,1778208641000,-2000.0,0.00018696,2]
[421843617,1778208641000,-181.88,0.00018967,2]
[421843632,1778208641000,-151.0,0.00019178,2]
[421843620,1778208641000,-243.0,0.00019,2]
[421843621,1778208641000,-431.0,0.00019,2]
[421843623,1778208641000,-324.0,0.00019,2]
[421843622,1778208641000,-162.43477557,0.00019,2]
[421843629,1778208641000,-500.0,0.00019178,2]
[421843631,1778208641000,-571.3861099,0.00019178,2]
[421843624,1778208641000,-338.625981,0.00019,2]
[421843625,1778208641000,-171.22,0.0001914,2]
[421843628,1778208641000,-500.0,0.00019178,2]
[421843626,1778208641000,-500.0,0.00019178,2]
[421843630,1778208641000,-500.0,0.00019178,2]
[421843604,1778208641000,-350.0,0.00018,2]
[421843618,1778208641000,-1663.73647626,0.00019,2]
[421843606,1778208641000,-171.22,0.00018076,2]
[421843594,1778208641000,-1372.15,0.00017684,2]
[421843602,1778208641000,-285.28,0.00017766,2]
[421843627,1778208641000,-500.0,0.00019178,2]
[421843578,1778208641000,-772.60420132,0.00017172,2]
[421843581,1778208641000,-199.68,0.000172,2]
[421843584,1778208641000,-579.18380318,0.0001729,2]
[421843580,1778208641000,-1000.0,0.00017191,2]
[421843577,1778208641000,-797.45313577,0.0001717,2]
[421843583,1778208641000,-797.45313577,0.00017284,2]
[421843579,1778208641000,-503.23430575,0.00017191,2]
[421843582,1778208641000,-797.45313577,0.00017257,2]
[421843586,1778208641000,-993.78348246,0.00017534,2]
[421843585,1778208641000,-797.45313577,0.00017315,2]
[421843588,1778208641000,-500.0,0.00017606,2]
[421843587,1778208641000,-2197.46934131,0.0001756,2]
[421843589,1778208641000,-168.88,0.00017645,2]
[421843590,1778208641000,-168.88,0.00017645,2]
[421843591,1778208641000,-947.419,0.00017684,2]
[421843592,1778208641000,-3554.986,0.00017684,2]
[421843595,1778208641000,-150.528,0.00017684,2]
[421843596,1778208641000,-1274.239,0.00017684,2]
[421843597,1778208641000,-421.607,0.00017684,2]
[421843598,1778208641000,-930.85,0.00017684,2]
[421843599,1778208641000,-623.36,0.00017723,2]
[421843600,1778208641000,-399.67636483,0.00017739,2]
[421843601,1778208641000,-1186.53640156,0.00017763,2]
[421843603,1778208641000,-223.61,0.00017845,2]
[421843607,1778208641000,-1000.0,0.00018154,2]
[421843633,1778208641000,-151.0,0.00019178,2]
[421843593,1778208641000,-641.454,0.00017684,2]
[421843634,1778208641000,-151.0,0.00019178,2]
[421843665,1778208641000,-207.99170503,0.00020844,2]
[421843667,1778208641000,-500.0,0.00021,7]
[421843660,1778208641000,-189.47676399,0.000208,2]
[421843669,1778208641000,-243.0,0.00021,2]
[421843671,1778208641000,-324.0,0.00021,2]
[421843676,1778208641000,-502.14,0.00021273,2]
[421843673,1778208641000,-489.25874705,0.000211,2]
[421843674,1778208641000,-623.36,0.00021268,2]
[421843675,1778208641000,-1321.37,0.00021273,2]
[421843691,1778208641000,-850.0,0.00021534,2]
[421843670,1778208641000,-431.0,0.00021,2]
[421843672,1778208641000,-189.47676399,0.000211,2]
[421843668,1778208641000,-598.15,0.00021,7]
[421843678,1778208641000,-189.47676399,0.000213,2]
[421843677,1778208641000,-3110.64,0.00021273,2]
[421843689,1778208641000,-850.0,0.00021534,2]
[421843688,1778208641000,-850.0,0.00021534,2]
[421843681,1778208641000,-151.0,0.00021499,2]
[421843680,1778208641000,-300.0,0.00021498,2]
[421843682,1778208641000,-189.47676399,0.000215,2]
[421843687,1778208641000,-850.0,0.00021534,2]
[421843684,1778208641000,-237.7282264,0.00021519,2]
[421843686,1778208641000,-850.0,0.00021534,2]
[421843685,1778208641000,-850.0,0.00021534,2]
[421843683,1778208641000,-489.25874705,0.000215,2]
[421843690,1778208641000,-850.0,0.00021534,2]
[421843679,1778208641000,-489.25874705,0.000213,2]
[421843663,1778208641000,-214.68143985,0.00020844,2]
[421843636,1778208641000,-250.96187286,0.00019178,2]
[421843661,1778208641000,-489.25874705,0.000208,2]
[421843664,1778208641000,-160.0,0.00020844,2]
[421843644,1778208641000,-499.0,0.00019966,2]
[421843635,1778208641000,-151.0,0.00019178,2]
[421843638,1778208641000,-623.36,0.00019496,2]
[421843637,1778208641000,-2000.0,0.0001925,2]
[421843641,1778208641000,-500.0,0.00019798,2]
[421843639,1778208641000,-849.44,0.000196,2]
[421843642,1778208641000,-1613.0,0.00019804,2]
[421843640,1778208641000,-155.0,0.00019761,2]
[421843645,1778208641000,-200.0,0.0002,2]
[421843646,1778208641000,-243.0,0.0002,2]
[421843647,1778208641000,-431.0,0.0002,2]
[421843651,1778208641000,-173.92525227,0.0002035,5]
[421843643,1778208641000,-297.6,0.00019889,2]
[421843648,1778208641000,-324.0,0.0002,2]
[421843655,1778208641000,-925.0,0.00020684,2]
[421843662,1778208641000,-448.05,0.000208,2]
[421843658,1778208641000,-417.0,0.00020684,2]
[421843659,1778208641000,-929.0,0.00020684,2]
[421843656,1778208641000,-3538.0,0.00020684,2]
[421843657,1778208641000,-1352.0,0.00020684,2]
[421843652,1778208641000,-584.3,0.00020381,2]
[421843649,1778208641000,-6453.0,0.00020051,2]
[421843650,1778208641000,-152.0,0.0002035,5]
[421843654,1778208641000,-223.61,0.00020591,2]
[421843653,1778208641000,-3000.17,0.00020457,2]
[421843666,1778208641000,-200.0,0.00021,2]
[421843732,1778208642000,-254.0,0.00022846,2]
[421843741,1778208642000,-350.0,0.000233,2]
[421843730,1778208642000,-150.0,0.00022846,2]
[421843734,1778208642000,-1011.13041083,0.00023,2]
[421843733,1778208642000,-350.0,0.00022999,2]
[421843729,1778208642000,-150.0,0.00022846,2]
[421843731,1778208642000,-150.0,0.00022846,2]
[421843724,1778208642000,-18769.0,0.0002261,2]
[421843722,1778208642000,-150.0,0.000226,2]
[421843723,1778208642000,-177.0,0.000226,2]
[421843738,1778208642000,-160.0,0.00023,19]
[421843735,1778208642000,-243.0,0.00023,2]
[421843740,1778208642000,-201.66,0.00023288,4]
[421843754,1778208642000,-350.0,0.00023692,2]
[421843736,1778208642000,-431.0,0.00023,2]
[421843737,1778208642000,-324.0,0.00023,2]
[421843746,1778208642000,-250.0,0.00023634,2]
[421843745,1778208642000,-250.0,0.00023634,2]
[421843744,1778208642000,-7368.19884157,0.000235,30]
[421843743,1778208642000,-509.40918522,0.00023439,2]
[421843742,1778208642000,-350.0,0.00023396,2]
[421843751,1778208642000,-250.0,0.00023634,2]
[421843753,1778208642000,-929.0,0.00023684,2]
[421843747,1778208642000,-250.0,0.00023634,2]
[421843750,1778208642000,-250.0,0.00023634,2]
[421843727,1778208642000,-150.0,0.00022846,2]
[421843752,1778208642000,-254.0,0.00023634,2]
[421843739,1778208642000,-3000.19,0.00023197,2]
[421843721,1778208642000,-269.0,0.000226,2]
[421843713,1778208642000,-150.0,0.00022,10]
[421843728,1778208642000,-150.0,0.00022846,2]
[421843692,1778208642000,-850.0,0.00021534,2]
[421843696,1778208642000,-489.25874705,0.000217,2]
[421843702,1778208642000,-186.0,0.00021864,2]
[421843693,1778208642000,-850.0,0.00021534,2]
[421843695,1778208642000,-189.47676399,0.000217,2]
[421843697,1778208642000,-2258.0,0.00021731,2]
[421843698,1778208642000,-350.0,0.00021734,2]
[421843701,1778208642000,-234.0,0.00021864,2]
[421843700,1778208642000,-3000.17,0.00021827,2]
[421843699,1778208642000,-1186.53640156,0.00021791,2]
[421843703,1778208642000,-350.0,0.00021883,2]
[421843714,1778208642000,-470.46400536,0.00022,2]
[421843704,1778208642000,-256.682543,0.00021918,2]
[421843726,1778208642000,-150.0,0.00022846,2]
[421843715,1778208642000,-168.88,0.00022056,2]
[421843708,1778208642000,-243.0,0.00022,2]
[421843749,1778208642000,-250.0,0.00023634,2]
[421843706,1778208642000,-1010.62,0.00021918,5]
[421843709,1778208642000,-431.0,0.00022,2]
[421843707,1778208642000,-22237.08543096,0.00022,4]
[421843710,1778208642000,-324.0,0.00022,2]
[421843712,1778208642000,-501.17763633,0.00022,2]
[421843716,1778208642000,-168.88,0.00022056,2]
[421843717,1778208642000,-3428.0,0.00022057,2]
[421843718,1778208642000,-584.3,0.00022353,2]
[421843719,1778208642000,-1627.65,0.00022466,2]
[421843720,1778208642000,-354.14992006,0.00022581,2]
[421843725,1778208642000,-350.0,0.00022648,2]
[421843711,1778208642000,-160.0,0.00022,15]
[421843748,1778208642000,-250.0,0.00023634,2]
[421843694,1778208642000,-367.0,0.00021534,2]
[421843764,1778208642000,-339.1397191,0.00024,2]
[421843789,1778208642000,-7209.92318644,0.00025,2]
[421843790,1778208642000,-2225.47648024,0.00025,2]
[421843792,1778208642000,-4845.37024658,0.00025,2]
[421843793,1778208642000,-150.41036832,0.00025,2]
[421843796,1778208642000,-500.0,0.00025123,2]
[421843795,1778208642000,-160.0,0.00025,25]
[421843801,1778208642000,-150.0,0.00025718,4]
[421843803,1778208642000,-152.81573345,0.00025718,2]
[421843798,1778208642000,-250.0,0.00025205,2]
[421843794,1778208642000,-150.0,0.00025,2]
[421843799,1778208642000,-155.0,0.00025407,2]
[421843797,1778208642000,-5529.0,0.000252,3]
[421843800,1778208642000,-39200.55070121,0.000255,2]
[421843783,1778208642000,-427.26094185,0.00024708,2]
[421843802,1778208642000,-151.74412025,0.00025718,2]
[421843806,1778208642000,-150.0,0.00025718,2]
[421843808,1778208642000,-150.76496429,0.00025718,2]
[421843807,1778208642000,-150.0,0.00025718,2]
[421843805,1778208642000,-150.0,0.00025718,2]
[421843821,1778208642000,-3110.64,0.00025786,2]
[421843818,1778208642000,-317.75632109,0.00025753,2]
[421843812,1778208642000,-150.0,0.00025718,2]
[421843810,1778208642000,-150.0,0.00025718,2]
[421843819,1778208642000,-1321.37,0.00025786,2]
[421843820,1778208642000,-502.14,0.00025786,2]
[421843816,1778208642000,-150.0,0.00025718,2]
[421843814,1778208642000,-150.0,0.00025718,2]
[421843756,1778208642000,-150.0,0.00023722,2]
[421843804,1778208642000,-150.0,0.00025718,2]
[421843791,1778208642000,-169.22342014,0.00025,2]
[421843705,1778208642000,-5000.0,0.00021918,2]
[421843784,1778208642000,-288.0,0.0002484,2]
[421843765,1778208642000,-160.0,0.00024,22]
[421843766,1778208642000,-1401.14,0.00024137,2]
[421843757,1778208642000,-150.0,0.00023722,2]
[421843755,1778208642000,-150.0,0.00023722,2]
[421843758,1778208642000,-150.0,0.00023722,2]
[421843763,1778208642000,-434.85004792,0.00024,2]
[421843760,1778208642000,-187.0,0.00023722,2]
[421843761,1778208642000,-3162.0,0.00023845,2]
[421843759,1778208642000,-150.0,0.00023722,2]
[421843762,1778208642000,-249.5468363,0.00024,2]
[421843767,1778208642000,-150.0,0.00024184,2]
[421843769,1778208642000,-150.0,0.00024184,2]
[421843770,1778208642000,-150.0,0.00024184,2]
[421843772,1778208642000,-150.0,0.00024184,2]
[421843771,1778208642000,-150.0,0.00024184,2]
[421843782,1778208642000,-1000.0,0.00024658,2]
[421843773,1778208642000,-150.0,0.00024184,2]
[421843768,1778208642000,-150.0,0.00024184,2]
[421843785,1778208642000,-456.0,0.00024867,10]
[421843787,1778208642000,-393.0,0.00024867,10]
[421843780,1778208642000,-150.0,0.00024658,2]
[421843786,1778208642000,-280.0,0.00024867,10]
[421843774,1778208642000,-150.0,0.00024184,2]
[421843788,1778208642000,-216.0,0.0002493,30]
[421843781,1778208642000,-179.84,0.00024658,2]
[421843778,1778208642000,-15295.0,0.000245,2]
[421843775,1778208642000,-257.0,0.00024184,2]
[421843777,1778208642000,-584.3,0.00024324,2]
[421843776,1778208642000,-1150.37671627,0.0002421,2]
[421843779,1778208642000,-167.84582652,0.0002455,15]
[421843856,1778208643000,-1093.33759803,0.00027111,2]
[421843859,1778208643000,-375.0,0.00027123,2]
[421843861,1778208643000,-257.0,0.00027123,2]
[421843855,1778208643000,-341.0,0.00027,7]
[421843863,1778208643000,-601.0,0.00027123,2]
[421843853,1778208643000,-160.0,0.00027,31]
[421843862,1778208643000,-688.87734062,0.00027123,2]
[421843852,1778208643000,-155.0,0.00027,2]
[421843858,1778208643000,-429.53370804,0.00027123,2]
[421843854,1778208643000,-162.0,0.00027,7]
[421843851,1778208643000,-2130.38088,0.00027,2]
[421843870,1778208643000,-150.0,0.00027147,4]
[421843865,1778208643000,-360.0,0.00027123,2]
[421843867,1778208643000,-505.0,0.00027137,2]
[421843866,1778208643000,-268.0,0.00027132,2]
[421843846,1778208643000,-278.0,0.00026663,2]
[421843868,1778208643000,-429.0,0.0002714,2]
[421843864,1778208643000,-414.0,0.00027123,2]
[421843874,1778208643000,-151.0,0.00027397,2]
[421843869,1778208643000,-150.0,0.00027147,4]
[421843872,1778208643000,-4161.3201923,0.0002739,2]
[421843873,1778208643000,-8220.83340534,0.0002739,2]
[421843871,1778208643000,-181.23365623,0.00027387,2]
[421843857,1778208643000,-1545.0,0.00027123,2]
[421843847,1778208643000,-150.0,0.0002667,4]
[421843845,1778208643000,-150.0,0.00026663,2]
[421843849,1778208643000,-150.0,0.00026861,4]
[421843823,1778208643000,-5529.0,0.000259,5]
[421843833,1778208643000,-150.0,0.00026432,4]
[421843826,1778208643000,-160.0,0.00026,28]
[421843825,1778208643000,-1753.29057707,0.00025959,2]
[421843824,1778208643000,-588.4357577,0.00025959,2]
[421843822,1778208643000,-1186.53640156,0.00025818,2]
[421843831,1778208643000,-150.0,0.00026289,4]
[421843830,1778208643000,-150.0,0.00026289,4]
[421843827,1778208643000,-150.0,0.00026004,4]
[421843832,1778208643000,-584.3,0.00026296,2]
[421843828,1778208643000,-234.0,0.00026108,2]
[421843850,1778208643000,-250.0,0.00027,2]
[421843829,1778208643000,-812.0,0.00026165,2]
[421843835,1778208643000,-200.0,0.00026555,2]
[421843836,1778208643000,-200.0,0.00026555,2]
[421843837,1778208643000,-200.0,0.00026555,2]
[421843838,1778208643000,-200.0,0.00026555,2]
[421843844,1778208643000,-214.0,0.0002663,2]
[421843840,1778208643000,-200.0,0.00026555,2]
[421843842,1778208643000,-150.0,0.00026575,4]
[421843848,1778208643000,-150.0,0.00026861,4]
[421843839,1778208643000,-200.0,0.00026555,2]
[421843841,1778208643000,-282.0,0.00026555,2]
[421843843,1778208643000,-150.0,0.0002663,2]
[421843875,1778208643000,-168.087159,0.00027397,2]
[421843834,1778208643000,-200.0,0.00026555,2]
[421843876,1778208643000,-151.0,0.00027397,2]
[421843886,1778208643000,-206.677729,0.00027397,2]
[421843912,1778208643000,-150.0,0.00028004,7]
[421843908,1778208643000,-207.9261601,0.00028,10]
[421843911,1778208643000,-160.0,0.00028,35]
[421843909,1778208643000,-207.9261601,0.00028,7]
[421843907,1778208643000,-5571.52512924,0.00028,2]
[421843906,1778208643000,-150.0,0.00027861,7]
[421843910,1778208643000,-214.63993676,0.00028,7]
[421843915,1778208643000,-584.3,0.00028267,2]
[421843917,1778208643000,-1783.77,0.000283,14]
[421843926,1778208643000,-151.0,0.00028577,7]
[421843920,1778208643000,-150.0,0.00028575,7]
[421843905,1778208643000,-500.0,0.000278,7]
[421843919,1778208643000,-279.99629778,0.00028575,7]
[421843916,1778208643000,-150.0,0.0002829,7]
[421843888,1778208643000,-151.0,0.00027397,2]
[421843922,1778208643000,-150.0,0.00028575,7]
[421843923,1778208643000,-234.66951995,0.00028575,7]
[421843925,1778208643000,-151.0,0.00028577,7]
[421843924,1778208643000,-151.0,0.00028577,7]
[421843927,1778208643000,-151.0,0.00028577,7]
[421843928,1778208643000,-151.0,0.00028577,7]
[421843929,1778208643000,-208628.8082006,0.00028577,2]
[421843931,1778208643000,-45738.85868604,0.00028577,2]
[421843930,1778208643000,-3801.4599282,0.00028577,2]
[421843918,1778208643000,-203.39430873,0.00028575,7]
[421843904,1778208643000,-150.0,0.00027718,7]
[421843921,1778208643000,-150.00000001,0.00028575,7]
[421843902,1778208643000,-150.0,0.00027623,7]
[421843913,1778208643000,-150.0,0.00028004,7]
[421843882,1778208643000,-152.425741,0.00027397,2]
[421843878,1778208643000,-151.0,0.00027397,2]
[421843887,1778208643000,-151.0,0.00027397,2]
[421843880,1778208643000,-151.0,0.00027397,2]
[421843877,1778208643000,-168.087159,0.00027397,2]
[421843879,1778208643000,-168.087159,0.00027397,2]
[421843881,1778208643000,-168.087159,0.00027397,2]
[421843883,1778208643000,-1500.0,0.00027397,2]
[421843885,1778208643000,-151.0,0.00027397,2]
[421843884,1778208643000,-200.0,0.00027397,2]
[421843889,1778208643000,-151.0,0.00027397,2]
[421843893,1778208643000,-150.3101093,0.00027397,5]
[421843901,1778208643000,-203.7662105,0.000275,2]
[421843890,1778208643000,-151.0,0.00027397,2]
[421843903,1778208643000,-341.0,0.00027671,14]
[421843899,1778208643000,-150.0,0.00027432,7]
[421843914,1778208643000,-505.0,0.00028064,3]
[421843892,1778208643000,-19116.83,0.00027397,10]
[421843894,1778208643000,-189.54,0.000274,7]
[421843896,1778208643000,-7317.51,0.000274,7]
[421843897,1778208643000,-1783.77,0.000274,14]
[421843898,1778208643000,-448.05,0.000274,7]
[421843900,1778208643000,-150.0,0.00027432,7]
[421843891,1778208643000,-254.783084,0.00027397,2]
[421843895,1778208643000,-235.65,0.000274,7]
[421843932,1778208644000,-209.46747936,0.00014018,2]
[421843933,1778208644000,-370.92406264,0.00024867,10]
[421843935,1778208644000,-374.0,0.00024867,10]
[421843936,1778208644000,-150.53103556,0.00027397,10]
[421843937,1778208644000,-308.0,0.000171,2]
[421843938,1778208644000,-357.0,0.00025718,10]
[421843939,1778208644000,-12433.8255503,0.00027397,10]
[421843943,1778208644000,-717.72,0.00027397,10]
[421843942,1778208644000,-634.28,0.00027397,10]
[421843934,1778208644000,-152.07593736,0.00024867,10]
[421843945,1778208646000,-2617.1572,0.00013727,2]
[421843947,1778208646000,-3626.0,0.00020695,2]
[421843948,1778208646000,-3264.89,0.00023695,2]
[421843949,1778208646000,-209.46747936,0.00025959,2]
[421843951,1778208646000,-728.89173202,0.0002619,2]
[421843946,1778208646000,-3626.0,0.00017695,2]
[421843952,1778208646000,-364.44586601,0.0002619,2]
[421843953,1778208646000,-12336.97341414,0.00027397,10]
[421843956,1778208646000,-96385.96977475,0.00028577,2]
[421843955,1778208646000,-23660.17868646,0.00028577,2]
[421843954,1778208646000,-196.07465082,0.00028477,2]
[421843957,1778208646000,-7567.82986296,0.00028577,2]
[421844721,1778209204000,164.0,0.00026831,120]
[421844722,1778209205000,164.0,0.00028172,120]
[421844723,1778209212000,158.076,0.00028577,120]
[421844724,1778209294000,155.83,6.87e-05,2]
[421844729,1778209295000,155.83,9.732e-05,2]
[421844728,1778209295000,155.83,9.16e-05,2]
[421844727,1778209295000,155.83,8.587e-05,2]
[421844726,1778209295000,155.83,8.015e-05,2]
[421844725,1778209295000,155.83,7.443e-05,2]
[421844730,1778209296000,155.83,0.00010305,2]
[421844731,1778209296000,155.83,0.00010877,2]
[421844732,1778209296000,155.83,0.0001145,2]
[421844734,1778209303000,-155.83,0.00012595,2]
[421844735,1778209303000,-98.49059868,0.00013167,2]
[421844733,1778209303000,-155.83,0.00012022,2]
[421844737,1778209333000,-250.00137133,0.00013046,2]
[421844738,1778209336000,-390.05399549,0.00013046,2]
[421844739,1778209338000,-161.58461143,0.00013046,2]
[421844740,1778209340000,-247.59,0.00013046,2]
[421844741,1778209343000,-200.0,0.00013046,2]
[421844742,1778209352000,4646.62171062,8e-05,2]
[421844752,1778209782000,1001.64553935,0.00030137,120]
[421845140,1778209846000,-2695.71,0.00012892,2]
[421845138,1778209846000,-200.0,0.00012879,2]
[421845132,1778209846000,-250.0,0.00012672,2]
[421845134,1778209846000,-17572.82,0.00012672,2]
[421845107,1778209846000,-150.0,0.00012582,2]
[421845128,1778209846000,-2051.3,0.00012583,2]
[421845123,1778209846000,-300.0,0.00012582,2]
[421845144,1778209846000,-20073.31,0.00013133,2]
[421845130,1778209846000,-120624.33,0.00012583,2]
[421845136,1778209846000,-3413.56,0.00012853,2]
[421845125,1778209846000,-1200.0,0.00012582,2]
[421845146,1778209846000,-57.33940132,0.00013167,2]
[421845142,1778209846000,-750.77002175,0.00013046,2]
[421845156,1778209846000,-150.0,0.00013488,2]
[421845167,1778209846000,-150.0,0.00013488,2]
[421845163,1778209846000,-151.74412025,0.00013488,2]
[421845165,1778209846000,-150.0,0.00013488,2]
[421845158,1778209846000,-150.0,0.00013488,2]
[421845152,1778209846000,-1391.80334724,0.00013427,2]
[421845160,1778209846000,-150.0,0.00013488,2]
[421845150,1778209846000,-3489.47276442,0.00013427,2]
[421845148,1778209846000,-150.0,0.00013323,2]
[421845154,1778209846000,-173.03748203,0.00013458,2]
[421845216,1778209847000,-2500.0,0.00013527,2]
[421845226,1778209847000,-200.0,0.000136,4]
[421845220,1778209847000,-427.26094186,0.00013599,2]
[421845224,1778209847000,-300.0,0.000136,4]
[421845218,1778209847000,-3489.47276437,0.00013591,2]
[421845208,1778209847000,-193.38378891,0.00013527,2]